[Event "Titled Tuesday Blitz October 11 Early 2022"]
[White "Haitin, Ilja"]
[Black "Cramling Bellon, Anna"]
[WhiteFideId "4501764"]
[BlackFideId "32009232"]
[WhiteElo "2221"]
[BlackElo "1972"]
[Result "1-0"]
[Round "04"]
[TimeControl "180+1"]
[Date "2022.10.12"]
[WhiteClock "0:00:04"]
[BlackClock "0:00:01"]

1. e4 {[%clk 0:03:00]}  c5 {[%clk 0:02:59]} 2. d3 {[%clk 0:03:01]}  Nc6 {[%clk 0:02:57]} 3. f4 {[%clk 0:02:59]}  g6 {[%clk 0:02:57]} 4. Nf3 {[%clk 0:02:57]}  Bg7 {[%clk 0:02:57]} 5. g3 {[%clk 0:02:57]}  e6 {[%clk 0:02:57]} 6. Bg2 {[%clk 0:02:56]}  Nge7 {[%clk 0:02:57]} 7. O-O {[%clk 0:02:56]}  d5 {[%clk 0:02:56]} 8. c3 {[%clk 0:02:42]}  O-O {[%clk 0:02:55]} 9. Qe2 {[%clk 0:02:37]}  d4 {[%clk 0:02:37]} 10. c4 {[%clk 0:02:28]}  a6 {[%clk 0:02:24]} 11. Nbd2 {[%clk 0:02:08]}  f5 {[%clk 0:02:09]} 12. Nb3 {[%clk 0:01:49]}  b6 {[%clk 0:01:48]} 13. exf5 {[%clk 0:01:48]}  exf5 {[%clk 0:01:40]} 14. Bd2 {[%clk 0:01:27]}  Rb8 {[%clk 0:01:33]} 15. Rae1 {[%clk 0:01:26]}  Bd7 {[%clk 0:01:22]} 16. Ng5 {[%clk 0:01:22]}  Qc8 {[%clk 0:00:54]} 17. h4 {[%clk 0:01:08]}  h6 {[%clk 0:00:46]} 18. Ne6 {[%clk 0:01:00]}  Bxe6 {[%clk 0:00:45]} 19. Qxe6+ {[%clk 0:01:01]}  Qxe6 {[%clk 0:00:45]} 20. Rxe6 {[%clk 0:01:02]}  Rf6 {[%clk 0:00:39]} 21. Rfe1 {[%clk 0:00:54]}  Kf7 {[%clk 0:00:39]} 22. R6e2 {[%clk 0:00:39]}  Rc8 {[%clk 0:00:31]} 23. Kh2 {[%clk 0:00:27]}  h5 {[%clk 0:00:27]} 24. Bf3 {[%clk 0:00:24]}  Ng8 {[%clk 0:00:27]} 25. Bd5+ {[%clk 0:00:23]}  Kf8 {[%clk 0:00:27]} 26. Bxg8 {[%clk 0:00:11]}  Kxg8 {[%clk 0:00:28]} 27. Re8+ {[%clk 0:00:11]}  Rxe8 {[%clk 0:00:23]} 28. Rxe8+ {[%clk 0:00:12]}  Kf7 {[%clk 0:00:18]} 29. Rc8 {[%clk 0:00:10]}  Re6 {[%clk 0:00:14]} 30. Kg2 {[%clk 0:00:10]}  Ne7 {[%clk 0:00:12]} 31. Rb8 {[%clk 0:00:09]}  Ng8 {[%clk 0:00:06]} 32. a4 {[%clk 0:00:07]}  Nf6 {[%clk 0:00:05]} 33. a5 {[%clk 0:00:07]}  bxa5 {[%clk 0:00:04]} 34. Bxa5 {[%clk 0:00:06]}  Ng4 {[%clk 0:00:04]} 35. Rb7+ {[%clk 0:00:07]}  Kg8 {[%clk 0:00:04]} 36. Rb8+ {[%clk 0:00:07]}  Kh7 {[%clk 0:00:04]} 37. Rb7 {[%clk 0:00:07]}  Re2+ {[%clk 0:00:03]} 38. Kf1 {[%clk 0:00:06]}  Rf2+ {[%clk 0:00:03]} 39. Ke1 {[%clk 0:00:06]}  Rxb2 {[%clk 0:00:04]} 40. Nxc5 {[%clk 0:00:07]}  Rg2 {[%clk 0:00:03]} 41. Ne6 {[%clk 0:00:06]}  Rg1+ {[%clk 0:00:03]} 42. Kd2 {[%clk 0:00:06]}  Rg2+ {[%clk 0:00:03]} 43. Kc1 {[%clk 0:00:06]}  Kh6 {[%clk 0:00:02]} 44. Nxg7 {[%clk 0:00:06]}  Rxg3 {[%clk 0:00:02]} 45. c5 {[%clk 0:00:05]}  Rxd3 {[%clk 0:00:02]} 46. Ne6 {[%clk 0:00:05]}  Ne3 {[%clk 0:00:02]} 47. Ng5 {[%clk 0:00:05]}  Rd1+ {[%clk 0:00:02]} 48. Kb2 {[%clk 0:00:05]}  Nc4+ {[%clk 0:00:02]} 49. Kc2 {[%clk 0:00:05]}  Rd2+ {[%clk 0:00:02]} 50. Bxd2 {[%clk 0:00:04]}  Nxd2 {[%clk 0:00:01]} 51. Rh7# {[%clk 0:00:04]} 1-0


[Site "https://www.chess.com"]

[Event "Titled Tuesday Blitz October 11 Early 2022"]
[White "Hoffmann, Asa"]
[Black "Kuchava, Ana"]
[WhiteFideId "2001470"]
[BlackFideId "13605348"]
[WhiteElo "2117"]
[BlackElo "2001"]
[Result "0-1"]
[Round "04"]
[TimeControl "180+1"]
[Date "2022.10.12"]
[WhiteClock "0:00:16"]
[BlackClock "0:00:09"]

1. d4 {[%clk 0:02:56]}  d5 {[%clk 0:02:59]} 2. Bg5 {[%clk 0:02:51]}  Nf6 {[%clk 0:02:47]} 3. Nd2 {[%clk 0:02:49]}  Bf5 {[%clk 0:02:42]} 4. f3 {[%clk 0:02:48]}  h6 {[%clk 0:02:37]} 5. Bxf6 {[%clk 0:02:47]}  exf6 {[%clk 0:02:38]} 6. e4 {[%clk 0:02:47]}  dxe4 {[%clk 0:02:38]} 7. fxe4 {[%clk 0:02:47]}  Bg6 {[%clk 0:02:32]} 8. Ngf3 {[%clk 0:02:41]}  Bd6 {[%clk 0:02:25]} 9. Bd3 {[%clk 0:02:34]}  O-O {[%clk 0:02:24]} 10. Qe2 {[%clk 0:02:33]}  Re8 {[%clk 0:02:24]} 11. O-O-O {[%clk 0:02:30]}  c5 {[%clk 0:02:18]} 12. dxc5 {[%clk 0:02:22]}  Bxc5 {[%clk 0:02:17]} 13. Nb3 {[%clk 0:02:21]}  Bd6 {[%clk 0:02:05]} 14. Nh4 {[%clk 0:02:11]}  Bh7 {[%clk 0:01:52]} 15. Qg4 {[%clk 0:02:08]}  Nc6 {[%clk 0:01:48]} 16. Nf5 {[%clk 0:01:44]}  Bxf5 {[%clk 0:01:48]} 17. Qxf5 {[%clk 0:01:44]}  Ne5 {[%clk 0:01:45]} 18. Bb5 {[%clk 0:01:40]}  Re7 {[%clk 0:01:39]} 19. Nd4 {[%clk 0:01:37]}  Qb6 {[%clk 0:01:36]} 20. Qf1 {[%clk 0:01:20]}  Bc5 {[%clk 0:01:26]} 21. Nf5 {[%clk 0:01:18]}  Rc7 {[%clk 0:01:24]} 22. Kb1 {[%clk 0:01:17]}  Rac8 {[%clk 0:01:21]} 23. Ba4 {[%clk 0:01:15]}  Qb4 {[%clk 0:01:09]} 24. Bb3 {[%clk 0:01:14]}  Qxe4 {[%clk 0:01:08]} 25. Ng3 {[%clk 0:01:09]}  Qb4 {[%clk 0:00:57]} 26. Qf5 {[%clk 0:01:05]}  a5 {[%clk 0:00:50]} 27. a3 {[%clk 0:01:04]}  Qg4 {[%clk 0:00:48]} 28. Rhf1 {[%clk 0:00:56]}  Qxf5 {[%clk 0:00:44]} 29. Nxf5 {[%clk 0:00:53]}  b5 {[%clk 0:00:44]} 30. Rd5 {[%clk 0:00:46]}  a4 {[%clk 0:00:41]} 31. Ba2 {[%clk 0:00:46]}  b4 {[%clk 0:00:42]} 32. axb4 {[%clk 0:00:42]}  Bxb4 {[%clk 0:00:42]} 33. c3 {[%clk 0:00:42]}  Bxc3 {[%clk 0:00:27]} 34. bxc3 {[%clk 0:00:41]}  Rb7+ {[%clk 0:00:20]} 35. Kc2 {[%clk 0:00:39]}  a3 {[%clk 0:00:20]} 36. Rb1 {[%clk 0:00:39]}  Rxb1 {[%clk 0:00:18]} 37. Bxb1 {[%clk 0:00:38]}  Rb8 {[%clk 0:00:19]} 38. Ra5 {[%clk 0:00:36]}  Rb2+ {[%clk 0:00:18]} 39. Kc1 {[%clk 0:00:36]}  Nc4 {[%clk 0:00:14]} 40. Nd4 {[%clk 0:00:24]}  Rb8 {[%clk 0:00:12]} 41. Ba2 {[%clk 0:00:23]}  Nxa5 {[%clk 0:00:10]} 42. Nf5 {[%clk 0:00:21]}  Nc6 {[%clk 0:00:09]} 43. Nd6 {[%clk 0:00:19]}  Rb2 {[%clk 0:00:09]} 44. Bd5 {[%clk 0:00:18]}  Ne5 {[%clk 0:00:08]} 45. c4 {[%clk 0:00:18]}  Nd3+ {[%clk 0:00:08]} 46. Kd1 {[%clk 0:00:17]}  a2 {[%clk 0:00:08]} 47. c5 {[%clk 0:00:16]}  a1=Q# {[%clk 0:00:09]} 0-1


[Site "https://www.chess.com"]

[Event "Titled Tuesday Blitz October 11 Early 2022"]
[White "Ibarra Jerez, Jose Carlos"]
[Black "Munkhgal, Gombosuren"]
[WhiteFideId "2226332"]
[BlackFideId "4901266"]
[WhiteElo "2627"]
[BlackElo "2576"]
[Result "1-0"]
[Round "04"]
[TimeControl "180+1"]
[Date "2022.10.11"]
[WhiteClock "0:00:08"]
[BlackClock "0:00:03"]

1. e3 {[%clk 0:02:55]}  e5 {[%clk 0:02:59]} 2. c4 {[%clk 0:02:54]}  Nf6 {[%clk 0:02:59]} 3. a3 {[%clk 0:02:53]}  c6 {[%clk 0:02:59]} 4. Nf3 {[%clk 0:02:52]}  e4 {[%clk 0:02:59]} 5. Nd4 {[%clk 0:02:52]}  d5 {[%clk 0:03:00]} 6. cxd5 {[%clk 0:02:53]}  cxd5 {[%clk 0:03:00]} 7. d3 {[%clk 0:02:54]}  Nc6 {[%clk 0:03:00]} 8. Nxc6 {[%clk 0:02:54]}  bxc6 {[%clk 0:03:00]} 9. Qc2 {[%clk 0:02:54]}  Qc7 {[%clk 0:02:56]} 10. Nd2 {[%clk 0:02:50]}  Bf5 {[%clk 0:02:55]} 11. dxe4 {[%clk 0:02:45]}  Nxe4 {[%clk 0:02:55]} 12. Bd3 {[%clk 0:02:45]}  Nxd2 {[%clk 0:02:42]} 13. Bxf5 {[%clk 0:02:42]}  Nc4 {[%clk 0:02:43]} 14. O-O {[%clk 0:02:37]}  Be7 {[%clk 0:02:41]} 15. b3 {[%clk 0:02:36]}  Bf6 {[%clk 0:02:40]} 16. bxc4 {[%clk 0:02:29]}  Bxa1 {[%clk 0:02:40]} 17. cxd5 {[%clk 0:02:29]}  g6 {[%clk 0:02:28]} 18. Be4 {[%clk 0:02:23]}  O-O {[%clk 0:02:19]} 19. dxc6 {[%clk 0:02:16]}  Be5 {[%clk 0:02:19]} 20. g3 {[%clk 0:02:13]}  Rab8 {[%clk 0:02:16]} 21. Rd1 {[%clk 0:02:03]}  Rfd8 {[%clk 0:02:16]} 22. Bd5 {[%clk 0:02:02]}  Kg7 {[%clk 0:01:53]} 23. e4 {[%clk 0:02:02]}  Rb5 {[%clk 0:01:44]} 24. Be3 {[%clk 0:01:54]}  Rdb8 {[%clk 0:01:42]} 25. Bxf7 {[%clk 0:01:28]}  Rb2 {[%clk 0:01:35]} 26. Qc4 {[%clk 0:01:26]}  Rb1 {[%clk 0:01:34]} 27. Bc1 {[%clk 0:00:44]}  Rd8 {[%clk 0:01:23]} 28. Bd5 {[%clk 0:00:35]}  Qb6 {[%clk 0:00:58]} 29. Kg2 {[%clk 0:00:32]}  Qb5 {[%clk 0:00:34]} 30. Qxb5 {[%clk 0:00:20]}  Rxb5 {[%clk 0:00:35]} 31. Bg5 {[%clk 0:00:20]}  Bf6 {[%clk 0:00:30]} 32. Be3 {[%clk 0:00:17]}  a5 {[%clk 0:00:28]} 33. Rc1 {[%clk 0:00:15]}  Be5 {[%clk 0:00:20]} 34. Be6 {[%clk 0:00:12]}  Bc7 {[%clk 0:00:18]} 35. Bf4 {[%clk 0:00:11]}  Re8 {[%clk 0:00:09]} 36. Bd7 {[%clk 0:00:08]}  Bxf4 {[%clk 0:00:08]} 37. gxf4 {[%clk 0:00:08]}  Rxe4 {[%clk 0:00:03]} 38. c7 {[%clk 0:00:08]} 1-0


[Site "https://www.chess.com"]

[Event "Titled Tuesday Blitz October 11 Early 2022"]
[White "Jiganchine, Roman"]
[Black "Jovic, Stanoje"]
[WhiteFideId "2603667"]
[BlackFideId "905020"]
[WhiteElo "2285"]
[BlackElo "2238"]
[Result "1-0"]
[Round "04"]
[TimeControl "180+1"]
[Date "2022.10.12"]
[WhiteClock "0:00:42"]
[BlackClock "0:00:12"]

1. e4 {[%clk 0:03:00]}  c6 {[%clk 0:03:00]} 2. d4 {[%clk 0:02:59]}  d5 {[%clk 0:03:00]} 3. exd5 {[%clk 0:02:59]}  cxd5 {[%clk 0:03:00]} 4. c4 {[%clk 0:03:00]}  Nf6 {[%clk 0:02:59]} 5. Nc3 {[%clk 0:03:00]}  Nc6 {[%clk 0:02:59]} 6. Nf3 {[%clk 0:02:59]}  Bg4 {[%clk 0:02:59]} 7. cxd5 {[%clk 0:02:54]}  Nxd5 {[%clk 0:02:58]} 8. Qb3 {[%clk 0:02:54]}  Bxf3 {[%clk 0:02:57]} 9. gxf3 {[%clk 0:02:55]}  Nb6 {[%clk 0:02:57]} 10. d5 {[%clk 0:02:54]}  Nd4 {[%clk 0:02:56]} 11. Bb5+ {[%clk 0:02:54]}  Nd7 {[%clk 0:02:56]} 12. Qa4 {[%clk 0:02:54]}  Nxb5 {[%clk 0:02:56]} 13. Qxb5 {[%clk 0:02:52]}  g6 {[%clk 0:02:56]} 14. O-O {[%clk 0:02:51]}  Bg7 {[%clk 0:02:56]} 15. Re1 {[%clk 0:02:52]}  O-O {[%clk 0:02:56]} 16. Bg5 {[%clk 0:02:40]}  Bf6 {[%clk 0:02:55]} 17. Bxf6 {[%clk 0:02:30]}  exf6 {[%clk 0:02:55]} 18. Qxb7 {[%clk 0:02:18]}  Rb8 {[%clk 0:02:53]} 19. Qxa7 {[%clk 0:02:18]}  Rxb2 {[%clk 0:02:53]} 20. Qd4 {[%clk 0:02:17]}  Ne5 {[%clk 0:02:49]} 21. Kg2 {[%clk 0:02:17]}  Re8 {[%clk 0:02:17]} 22. Rad1 {[%clk 0:02:06]}  Kg7 {[%clk 0:02:08]} 23. d6 {[%clk 0:02:03]}  Re6 {[%clk 0:01:43]} 24. Re3 {[%clk 0:01:58]}  Rb6 {[%clk 0:01:37]} 25. Ne4 {[%clk 0:01:50]}  f5 {[%clk 0:01:31]} 26. Nc5 {[%clk 0:01:37]}  Rexd6 {[%clk 0:00:24]} 27. Qxe5+ {[%clk 0:01:36]}  Kh6 {[%clk 0:00:24]} 28. Rxd6 {[%clk 0:01:29]}  Rxd6 {[%clk 0:00:24]} 29. Qf4+ {[%clk 0:01:25]}  Kg7 {[%clk 0:00:23]} 30. Nb7 {[%clk 0:01:21]}  Rd4 {[%clk 0:00:17]} 31. Nxd8 {[%clk 0:00:55]}  Rxf4 {[%clk 0:00:17]} 32. Re7 {[%clk 0:00:45]}  Kf8 {[%clk 0:00:16]} 33. Ra7 {[%clk 0:00:44]}  f6 {[%clk 0:00:12]} 34. Ne6+ {[%clk 0:00:42]} 1-0


[Site "https://www.chess.com"]

[Event "Titled Tuesday Blitz October 11 Early 2022"]
[White "Jobava, Baadur"]
[Black "Yeletsky, Ivan"]
[WhiteFideId "13601520"]
[BlackFideId "24180327"]
[WhiteElo "2582"]
[BlackElo "2391"]
[Result "1/2-1/2"]
[Round "04"]
[TimeControl "180+1"]
[Date "2022.10.11"]
[WhiteClock "0:00:09"]
[BlackClock "0:00:26"]

1. e4 {[%clk 0:03:00]}  e6 {[%clk 0:02:59]} 2. d4 {[%clk 0:03:00]}  d5 {[%clk 0:03:00]} 3. exd5 {[%clk 0:03:01]}  exd5 {[%clk 0:02:59]} 4. Bd3 {[%clk 0:03:00]}  Nf6 {[%clk 0:03:00]} 5. Nf3 {[%clk 0:03:01]}  c5 {[%clk 0:03:01]} 6. O-O {[%clk 0:03:00]}  c4 {[%clk 0:03:01]} 7. Re1+ {[%clk 0:03:01]}  Be7 {[%clk 0:03:01]} 8. Bf1 {[%clk 0:03:01]}  O-O {[%clk 0:03:02]} 9. Nc3 {[%clk 0:03:01]}  Nc6 {[%clk 0:03:02]} 10. h3 {[%clk 0:02:59]}  Bf5 {[%clk 0:03:00]} 11. a3 {[%clk 0:02:58]}  Ne4 {[%clk 0:02:54]} 12. Ne2 {[%clk 0:02:46]}  Re8 {[%clk 0:02:47]} 13. c3 {[%clk 0:02:38]}  b5 {[%clk 0:02:43]} 14. Bf4 {[%clk 0:02:36]}  Bd6 {[%clk 0:02:37]} 15. Qc1 {[%clk 0:02:36]}  a5 {[%clk 0:02:29]} 16. g4 {[%clk 0:02:25]}  Bg6 {[%clk 0:02:25]} 17. Bg2 {[%clk 0:02:26]}  h5 {[%clk 0:02:15]} 18. Bxd6 {[%clk 0:02:25]}  Qxd6 {[%clk 0:02:16]} 19. Qf4 {[%clk 0:02:23]}  Qd7 {[%clk 0:02:08]} 20. Ng3 {[%clk 0:02:05]}  hxg4 {[%clk 0:02:05]} 21. hxg4 {[%clk 0:02:06]}  Nxg3 {[%clk 0:02:04]} 22. Qxg3 {[%clk 0:02:07]}  Be4 {[%clk 0:02:05]} 23. Re3 {[%clk 0:02:03]}  Re7 {[%clk 0:02:03]} 24. Rae1 {[%clk 0:02:03]}  Rae8 {[%clk 0:02:04]} 25. Ng5 {[%clk 0:01:56]}  Bxg2 {[%clk 0:02:03]} 26. Kxg2 {[%clk 0:01:18]}  Rxe3 {[%clk 0:02:03]} 27. Rxe3 {[%clk 0:01:18]}  Rxe3 {[%clk 0:02:02]} 28. fxe3 {[%clk 0:01:19]}  f6 {[%clk 0:02:00]} 29. Nh3 {[%clk 0:01:18]}  Qe6 {[%clk 0:01:50]} 30. Qf3 {[%clk 0:01:14]}  Ne7 {[%clk 0:01:44]} 31. Nf4 {[%clk 0:01:12]}  Qd7 {[%clk 0:01:44]} 32. Kh3 {[%clk 0:01:04]}  Kf7 {[%clk 0:01:42]} 33. e4 {[%clk 0:01:02]}  dxe4 {[%clk 0:01:41]} 34. Qxe4 {[%clk 0:01:03]}  f5 {[%clk 0:01:38]} 35. gxf5 {[%clk 0:01:02]}  Qxf5+ {[%clk 0:01:39]} 36. Qxf5+ {[%clk 0:01:01]}  Nxf5 {[%clk 0:01:40]} 37. Nd5 {[%clk 0:01:02]}  Nd6 {[%clk 0:01:34]} 38. Kg4 {[%clk 0:01:02]}  Ke6 {[%clk 0:01:33]} 39. Nf4+ {[%clk 0:01:02]}  Kd7 {[%clk 0:01:33]} 40. Kf3 {[%clk 0:00:58]}  Kc6 {[%clk 0:01:27]} 41. Ne6 {[%clk 0:00:53]}  g6 {[%clk 0:01:27]} 42. Nf4 {[%clk 0:00:51]}  g5 {[%clk 0:01:18]} 43. Ne6 {[%clk 0:00:51]}  b4 {[%clk 0:01:19]} 44. axb4 {[%clk 0:00:48]}  axb4 {[%clk 0:01:20]} 45. Nxg5 {[%clk 0:00:48]}  Nb5 {[%clk 0:00:51]} 46. Ne4 {[%clk 0:00:46]}  bxc3 {[%clk 0:00:42]} 47. bxc3 {[%clk 0:00:47]}  Kd5 {[%clk 0:00:43]} 48. Ke3 {[%clk 0:00:47]}  Kc6 {[%clk 0:00:42]} 49. Kd2 {[%clk 0:00:44]}  Kd5 {[%clk 0:00:40]} 50. Nf6+ {[%clk 0:00:44]}  Ke6 {[%clk 0:00:41]} 51. Ng4 {[%clk 0:00:45]}  Nd6 {[%clk 0:00:35]} 52. Ne3 {[%clk 0:00:41]}  Kf6 {[%clk 0:00:33]} 53. Kc2 {[%clk 0:00:39]}  Kg5 {[%clk 0:00:34]} 54. Nd5 {[%clk 0:00:36]}  Kf5 {[%clk 0:00:33]} 55. Kd2 {[%clk 0:00:31]}  Ke4 {[%clk 0:00:30]} 56. Nf6+ {[%clk 0:00:32]}  Kf5 {[%clk 0:00:31]} 57. Nd7 {[%clk 0:00:31]}  Ke4 {[%clk 0:00:30]} 58. Ne5 {[%clk 0:00:32]}  Kd5 {[%clk 0:00:28]} 59. Kc2 {[%clk 0:00:32]}  Nb5 {[%clk 0:00:24]} 60. Nf3 {[%clk 0:00:29]}  Ke4 {[%clk 0:00:24]} 61. Nd2+ {[%clk 0:00:29]}  Kd5 {[%clk 0:00:24]} 62. Nf3 {[%clk 0:00:27]}  Ke4 {[%clk 0:00:25]} 63. Ng5+ {[%clk 0:00:16]}  Kd5 {[%clk 0:00:25]} 64. Kb2 {[%clk 0:00:10]}  Nxd4 {[%clk 0:00:25]} 65. Nh3 {[%clk 0:00:10]}  Nb5 {[%clk 0:00:25]} 66. Nf4+ {[%clk 0:00:10]}  Ke4 {[%clk 0:00:25]} 67. Ne6 {[%clk 0:00:10]}  Nxc3 {[%clk 0:00:26]} 68. Kxc3 {[%clk 0:00:09]}  Ke5 {[%clk 0:00:26]} 69. Kxc4 {[%clk 0:00:09]} 1/2-1/2


[Site "https://www.chess.com"]

[Event "Titled Tuesday Blitz October 11 Early 2022"]
[White "Kalajzic, Ivan"]
[Black "Nozdrachev, Leonid"]
[WhiteFideId "14506378"]
[BlackFideId "24113433"]
[WhiteElo "2163"]
[BlackElo "2249"]
[Result "0-1"]
[Round "04"]
[TimeControl "180+1"]
[Date "2022.10.12"]
[WhiteClock "0:00:08"]
[BlackClock "0:01:12"]

1. d4 {[%clk 0:02:49]}  Nf6 {[%clk 0:02:59]} 2. Nc3 {[%clk 0:02:49]}  e6 {[%clk 0:02:58]} 3. Bg5 {[%clk 0:02:49]}  d5 {[%clk 0:02:56]} 4. e3 {[%clk 0:02:45]}  Bb4 {[%clk 0:02:56]} 5. Qd3 {[%clk 0:02:44]}  c5 {[%clk 0:02:55]} 6. dxc5 {[%clk 0:02:40]}  Qa5 {[%clk 0:02:54]} 7. Bxf6 {[%clk 0:02:38]}  gxf6 {[%clk 0:02:55]} 8. Ne2 {[%clk 0:02:38]}  Nc6 {[%clk 0:02:54]} 9. O-O-O {[%clk 0:02:30]}  Bd7 {[%clk 0:02:45]} 10. a3 {[%clk 0:02:27]}  Bxc5 {[%clk 0:02:40]} 11. Qb5 {[%clk 0:02:22]}  Qxb5 {[%clk 0:02:26]} 12. Nxb5 {[%clk 0:02:23]}  Rc8 {[%clk 0:02:27]} 13. Ned4 {[%clk 0:02:15]}  a6 {[%clk 0:02:26]} 14. Nxc6 {[%clk 0:02:11]}  Bxc6 {[%clk 0:02:22]} 15. Nd4 {[%clk 0:02:11]}  Ba4 {[%clk 0:02:22]} 16. Rd2 {[%clk 0:01:50]}  Ke7 {[%clk 0:02:18]} 17. Be2 {[%clk 0:01:47]}  Rhg8 {[%clk 0:02:15]} 18. g3 {[%clk 0:01:46]}  h6 {[%clk 0:02:14]} 19. Rhd1 {[%clk 0:01:45]}  Bd7 {[%clk 0:02:11]} 20. Nb3 {[%clk 0:01:43]}  Bd6 {[%clk 0:02:09]} 21. Kb1 {[%clk 0:01:42]}  Be5 {[%clk 0:02:06]} 22. c4 {[%clk 0:01:40]}  Ba4 {[%clk 0:02:01]} 23. Na5 {[%clk 0:01:05]}  Bxd1 {[%clk 0:01:59]} 24. Rxd1 {[%clk 0:01:04]}  dxc4 {[%clk 0:01:57]} 25. Nxc4 {[%clk 0:01:00]}  Rgd8 {[%clk 0:01:56]} 26. Na5 {[%clk 0:00:49]}  Rxd1+ {[%clk 0:01:50]} 27. Bxd1 {[%clk 0:00:50]}  Rc7 {[%clk 0:01:49]} 28. Bf3 {[%clk 0:00:50]}  b6 {[%clk 0:01:48]} 29. Nc6+ {[%clk 0:00:49]}  Kd6 {[%clk 0:01:47]} 30. Nb4 {[%clk 0:00:47]}  a5 {[%clk 0:01:46]} 31. Nd3 {[%clk 0:00:46]}  f5 {[%clk 0:01:46]} 32. Ba8 {[%clk 0:00:43]}  Bf6 {[%clk 0:01:46]} 33. f4 {[%clk 0:00:43]}  h5 {[%clk 0:01:42]} 34. e4 {[%clk 0:00:43]}  fxe4 {[%clk 0:01:42]} 35. Bxe4 {[%clk 0:00:44]}  h4 {[%clk 0:01:42]} 36. g4 {[%clk 0:00:44]}  h3 {[%clk 0:01:38]} 37. g5 {[%clk 0:00:44]}  Bd4 {[%clk 0:01:36]} 38. f5 {[%clk 0:00:34]}  Bg1 {[%clk 0:01:31]} 39. g6 {[%clk 0:00:31]}  fxg6 {[%clk 0:01:25]} 40. fxg6 {[%clk 0:00:24]}  Bxh2 {[%clk 0:01:24]} 41. Ne1 {[%clk 0:00:18]}  Bg3 {[%clk 0:01:23]} 42. Nf3 {[%clk 0:00:17]}  h2 {[%clk 0:01:21]} 43. Ng5 {[%clk 0:00:16]}  Ke5 {[%clk 0:01:15]} 44. Nf7+ {[%clk 0:00:16]}  Kf6 {[%clk 0:01:15]} 45. Nh6 {[%clk 0:00:11]}  Rg7 {[%clk 0:01:14]} 46. Ng4+ {[%clk 0:00:11]}  Kg5 {[%clk 0:01:14]} 47. Ne3 {[%clk 0:00:10]}  Kf4 {[%clk 0:01:12]} 48. Bc6 {[%clk 0:00:08]} 0-1


[Site "https://www.chess.com"]

[Event "Titled Tuesday Blitz October 11 Early 2022"]
[White "Kazakov, Mikhail"]
[Black "Flis, Pawel"]
[WhiteFideId "14102749"]
[BlackFideId "1112864"]
[WhiteElo "2413"]
[BlackElo "1836"]
[Result "1-0"]
[Round "04"]
[TimeControl "180+1"]
[Date "2022.10.12"]
[WhiteClock "0:00:09"]
[BlackClock "0:00:05"]

1. e4 {[%clk 0:03:00]}  c5 {[%clk 0:02:56]} 2. Nf3 {[%clk 0:03:00]}  d6 {[%clk 0:02:57]} 3. d4 {[%clk 0:02:59]}  Nf6 {[%clk 0:02:57]} 4. Nc3 {[%clk 0:02:59]}  cxd4 {[%clk 0:02:57]} 5. Nxd4 {[%clk 0:02:58]}  a6 {[%clk 0:02:58]} 6. Be3 {[%clk 0:02:46]}  e5 {[%clk 0:02:56]} 7. Nf3 {[%clk 0:02:43]}  Be7 {[%clk 0:02:55]} 8. h3 {[%clk 0:02:42]}  h6 {[%clk 0:02:53]} 9. Bc4 {[%clk 0:02:41]}  Be6 {[%clk 0:02:53]} 10. Bb3 {[%clk 0:02:40]}  Nbd7 {[%clk 0:02:49]} 11. Nh4 {[%clk 0:02:28]}  Bxb3 {[%clk 0:02:41]} 12. axb3 {[%clk 0:02:27]}  d5 {[%clk 0:02:19]} 13. exd5 {[%clk 0:02:06]}  Bb4 {[%clk 0:01:51]} 14. Nf5 {[%clk 0:02:01]}  O-O {[%clk 0:01:23]} 15. Qf3 {[%clk 0:01:48]}  e4 {[%clk 0:01:07]} 16. Qg3 {[%clk 0:01:37]}  g6 {[%clk 0:00:36]} 17. Nxh6+ {[%clk 0:01:23]}  Kh7 {[%clk 0:00:35]} 18. O-O-O {[%clk 0:01:03]}  Qa5 {[%clk 0:00:24]} 19. Nb1 {[%clk 0:00:54]}  Nxd5 {[%clk 0:00:17]} 20. Ng4 {[%clk 0:00:46]}  Nxe3 {[%clk 0:00:15]} 21. fxe3 {[%clk 0:00:38]}  Nc5 {[%clk 0:00:12]} 22. Qh4+ {[%clk 0:00:33]}  Kg8 {[%clk 0:00:09]} 23. Nf6+ {[%clk 0:00:24]}  Kg7 {[%clk 0:00:09]} 24. Rdf1 {[%clk 0:00:14]}  Rh8 {[%clk 0:00:05]} 25. Qg4 {[%clk 0:00:09]} 1-0


[Site "https://www.chess.com"]

[Event "Titled Tuesday Blitz October 11 Early 2022"]
[White "Kiseljova, Marya"]
[Black "Krzywda, Andrzej"]
[WhiteFideId "4155009"]
[BlackFideId "1114565"]
[WhiteElo "1931"]
[BlackElo "2149"]
[Result "0-1"]
[Round "04"]
[TimeControl "180+1"]
[Date "2022.10.12"]
[WhiteClock "0:00:11"]
[BlackClock "0:00:57"]

1. d4 {[%clk 0:02:55]}  Nf6 {[%clk 0:02:59]} 2. c4 {[%clk 0:02:55]}  c5 {[%clk 0:03:00]} 3. d5 {[%clk 0:02:55]}  b5 {[%clk 0:03:00]} 4. cxb5 {[%clk 0:02:56]}  a6 {[%clk 0:03:01]} 5. e3 {[%clk 0:02:55]}  g6 {[%clk 0:03:00]} 6. Nc3 {[%clk 0:02:55]}  Bg7 {[%clk 0:03:00]} 7. a4 {[%clk 0:02:56]}  O-O {[%clk 0:03:00]} 8. e4 {[%clk 0:02:55]}  axb5 {[%clk 0:02:42]} 9. Bxb5 {[%clk 0:02:54]}  e6 {[%clk 0:02:42]} 10. e5 {[%clk 0:02:14]}  Nxd5 {[%clk 0:02:33]} 11. Nxd5 {[%clk 0:02:14]}  exd5 {[%clk 0:02:34]} 12. Qxd5 {[%clk 0:02:13]}  Nc6 {[%clk 0:02:26]} 13. Bxc6 {[%clk 0:01:59]}  dxc6 {[%clk 0:02:26]} 14. Qxd8 {[%clk 0:01:55]}  Rxd8 {[%clk 0:02:26]} 15. Nf3 {[%clk 0:01:54]}  Bg4 {[%clk 0:02:17]} 16. Bf4 {[%clk 0:01:33]}  Bxf3 {[%clk 0:02:16]} 17. gxf3 {[%clk 0:01:32]}  Rd4 {[%clk 0:02:17]} 18. Be3 {[%clk 0:01:32]}  Rdxa4 {[%clk 0:02:17]} 19. O-O-O {[%clk 0:01:28]}  Bxe5 {[%clk 0:02:11]} 20. Kc2 {[%clk 0:01:11]}  Rc4+ {[%clk 0:02:06]} 21. Kd3 {[%clk 0:01:11]}  Rb4 {[%clk 0:01:55]} 22. Bxc5 {[%clk 0:01:04]}  Rxb2 {[%clk 0:01:52]} 23. Rb1 {[%clk 0:00:38]}  Rxb1 {[%clk 0:01:44]} 24. Rxb1 {[%clk 0:00:38]}  Bxh2 {[%clk 0:01:44]} 25. Rb6 {[%clk 0:00:31]}  Rc8 {[%clk 0:01:42]} 26. Ke4 {[%clk 0:00:29]}  h5 {[%clk 0:01:42]} 27. f4 {[%clk 0:00:27]}  h4 {[%clk 0:01:41]} 28. Kf3 {[%clk 0:00:27]}  g5 {[%clk 0:01:18]} 29. fxg5 {[%clk 0:00:25]}  h3 {[%clk 0:01:04]} 30. Kg4 {[%clk 0:00:20]}  Bc7 {[%clk 0:01:04]} 31. Rb1 {[%clk 0:00:19]}  h2 {[%clk 0:01:03]} 32. Be3 {[%clk 0:00:18]}  Ra8 {[%clk 0:01:00]} 33. Bf4 {[%clk 0:00:18]}  Ra4 {[%clk 0:01:00]} 34. Kh3 {[%clk 0:00:13]}  Rxf4 {[%clk 0:00:59]} 35. Kg2 {[%clk 0:00:12]}  Rg4+ {[%clk 0:00:58]} 36. Kf3 {[%clk 0:00:11]}  Rg1 {[%clk 0:00:57]} 37. Rb7 {[%clk 0:00:11]} 0-1


[Site "https://www.chess.com"]